[Event "3rd Sharjah Challengers 2023"]
[Site "Sharjah"]
[Date "2023.05.23"]
[Round "7.2"]
[White "Nigmatov, Ortik"]
[Black "Sivuk, Vitaly"]
[Result "1-0"]
[ECO "B12"]
[WhiteElo "2438"]
[BlackElo "2489"]
[Annotator "TA"]
[PlyCount "57"]
[EventDate "2023.05.16"]
[EventType "swiss"]
[EventCountry "UAE"]
[SourceTitle "playchess.com"]
[Source "ChessBase"]
[SourceQuality "1"]
[TimeControl "5400+30"]

{[%evp 10,57,23,25,45,27,37,35,24,25,25,23,50,43,49,23,95,106,91,94,89,91,185,159,165,159,287,303,345,338,375,387,535,532,513,478,842,817,841,812,882,865,1537,1486,2307,2290,1929,1751,29984,29985]} 1. e4 {[%emt 0:00:03]} c6 {[%emt 0:00:10]} 2. d4 {[%emt 0:00:12]} d5 {[%emt 0:00:07]} 3. e5 {[%emt 0:00:04]} Bf5 {[%emt 0:00:09]} 4. Nf3 {[%emt 0:00:08]} e6 {[%emt 0:00:11]} 5. Be2 {[%emt 0:00:11]} Nd7 {[%emt 0:00:13]} 6. O-O {[%emt 0:00:05]} a5 {[%emt 0:00:09] B12: Caro-Kann: Advance Variation.} 7. a4 {[%emt 0:01:10]} f6 {[%emt 0:00:12]} 8. Bd3 {[%emt 0:00:09]} Bxd3 {[%emt 0:05:10] White is slightly better.} 9. Qxd3 {[%emt 0:00:13]} fxe5 {[%emt 0:00:44] [#]} 10. dxe5 $146 {[%emt 0:00:04]} ({Predecessor:} 10. Ng5 Qf6 11. dxe5 Nxe5 12. Qb3 Kd7 13. Nxh7 Nf3+ 14. Kh1 Qh4 15. Qxf3 Rxh7 16. Bf4 {1-0 Pasztor,B (2387)-Andreev,S (2016) EU-ch 23rd Vrnjacka Banja 2023 (4)}) 10... Bc5 {[%emt 0:04:17]} 11. Nbd2 {[%emt 0:05:18]} (11. Ng5 {seems wilder.} Qe7 12. Qh3 Nf8 13. c4) 11... Nh6 {[%emt 0:12:38]} 12. Nb3 {[%emt 0:00:14]} Qe7 {[%emt 0:02:58]} (12... Nf5 $11 {keeps the balance.}) 13. Bg5 $16 {[%emt 0:07:01] White is more active. White stays focused until the end.} Qf7 {[%emt 0:02:01]} 14. Nxc5 {[%emt 0:00:23]} Nxc5 {[%emt 0:00:08] Black is weak on the dark squares} 15. Qe3 $36 {[%emt 0:00:04][%csl LRc5,LRh6][%mdl 2048] White is in control.} Qf8 {[%emt 0:01:25] [#]} (15... Ne4 $16 {was necessary.}) 16. Bxh6 $1 $18 {[%emt 0:00:57]} gxh6 {[%emt 0:00:06]} 17. Nd4 {[%emt 0:00:14][%cal Bf3d4,Bd4c6,Bc6a7][%mdl 32]} O-O-O {[%emt 0:04:20]} (17... Qe7 $16 18. Qxh6 Rg8) 18. c3 {[%emt 0:04:33][%cal Bc2c3,Bc3c4,Bc4d5,Bd5e6][%mdl 32] Hoping for b4.} Qg7 {[%emt 0:17:17] [#]} 19. Nxc6 $1 {[%emt 0:10:15][%mdl 576] Discovered Attack, Double Attack} Rdg8 {[%emt 0:00:17][%csl Gg8][%cal Rg7g2]} (19... bxc6 20. Qxc5) 20. g3 {[%emt 0:00:21]} (20. Nxa5 $2 Qxg2#) 20... Ne4 {[%emt 0:00:37]} 21. Na7+ {[%emt 0:02:25]} Kd7 {[%emt 0:02:12]} 22. Qd4 {[%emt 0:04:18]} h5 {[%emt 0:02:46]} (22... Qe7 $142 23. Rad1 Qc5 24. Qxe4 Qxa7) 23. c4 {[%emt 0:00:43]} Ng5 {[%emt 0:03:09]} 24. f4 {[%emt 0:05:58]} (24. cxd5 $2 {too greedy.} Nf3+ 25. Kg2 Nxd4 $19) 24... Ne4 {[%emt 0:00:05]} 25. Ra3 {[%emt 0:01:32]} h4 {[%emt 0:01:44]} 26. cxd5 {[%emt 0:00:59]} hxg3 {[%emt 0:00:07]} 27. dxe6+ {[%emt 0:00:22]} Ke8 {[%emt 0:00:04]} 28. Qxe4 {[%emt 0:00:51] Threatening mate with Rc1.} gxh2+ {[%emt 0:00:13]} 29. Kxh2 {[%emt 0:00:14] A cool game by Nigmatov.   Weighted Error Value: White=0.05 (flawless) /Black=0.80} 1-0

[Event "3rd Sharjah Challengers 2023"]
[Site "Sharjah"]
[Date "2023.05.23"]
[Round "7.3"]
[White "Ohanyan, Emin"]
[Black "Rios, Cristhian Camilo"]
[Result "1-0"]
[ECO "D38"]
[WhiteElo "2444"]
[BlackElo "2469"]
[Annotator "TA"]
[PlyCount "51"]
[EventDate "2023.05.16"]
[EventType "swiss"]
[EventCountry "UAE"]
[SourceTitle "playchess.com"]
[Source "ChessBase"]
[SourceQuality "1"]
[TimeControl "5400+30"]

{[%evp 11,51,15,25,4,5,15,7,6,0,1,7,6,19,8,13,25,11,10,10,0,0,0,45,0,0,0,0,0,0,-8,35,28,28,24,37,30,192,157,162,152,565,566]} 1. d4 {[%emt 0:00:02]} Nf6 {[%emt 0:00:19]} 2. c4 {[%emt 0:00:05]} e6 {[%emt 0:00:13]} 3. Nf3 {[%emt 0:00:04]} d5 {[%emt 0:00:14]} 4. Nc3 {[%emt 0:00:04]} Bb4 {[%emt 0:00:08]} 5. Qa4+ {[%emt 0:00:05]} Nc6 {[%emt 0:00:07]} 6. e3 {[%emt 0:00:02]} O-O {[%emt 0:00:10]} 7. Qc2 {[%emt 0:00:05] D38: Queen's Gambit Declined: Ragozin Defence (4 Nf3 Bb4).} Re8 {[%emt 0:01:08]} 8. Bd2 {[%emt 0:00:26]} Bf8 {[%emt 0:00:00]} 9. Be2 {[%emt 0:00:06] The position is equal.} Nb4 {[%emt 0:00:10]} 10. Qb1 {[%emt 0:01:27]} dxc4 {[%emt 0:00:28]} 11. Bxc4 {[%emt 0:00:08]} b6 {[%emt 0:00:04]} 12. a3 {[%emt 0:00:17]} Ba6 {[%emt 0:00:07]} 13. Be2 {[%emt 0:00:39]} Bxe2 {[%emt 0:00:27]} 14. Nxe2 {[%emt 0:00:09]} Na6 {[%emt 0:00:17]} 15. e4 {[%emt 0:00:49][%cal Be3e4,Be4e5][%mdl 32] [#]} c5 $146 {[%emt 0:01:15]} ({Predecessor:} 15... h6 16. e5 Nd5 17. h4 c5 18. Qd3 Nb8 19. Rc1 Nc6 20. O-O Nxd4 21. Nexd4 cxd4 22. Qxd4 {½-½ Narayanan,S (2659)-Santos Latasa,J (2675) POR-chT Ovar 2022 (7.2)}) 16. Qd3 {[%emt 0:00:44] e5 would be deadly.} Nc7 {[%emt 0:02:48][%cal Oe6e5]} (16... Nb8 $5) 17. e5 {[%emt 0:05:10]} Nfd5 {[%emt 0:00:09]} 18. O-O {[%emt 0:05:45]} h6 {[%emt 0:07:28]} 19. Rac1 {[%emt 0:07:03][%cal Ba1c1,Bc1c4,Bc4c2][%mdl 32]} Qd7 {[%emt 0:02:23]} 20. g4 {[%emt 0:24:07]} Qb5 {[%emt 0:18:07]} 21. Rc4 $1 {[%emt 0:02:34]} Ne7 {[%emt 0:13:27]} (21... Qxb2 $2 22. Rb1 Qa2 23. Nc1 $18) 22. Ng3 {[%emt 0:07:33]} cxd4 {[%emt 0:04:57]} 23. g5 {[%emt 0:03:55] Threatens to win with gxh6. Black is weak on the dark squares} (23. Nxd4 Qxe5 24. Nf3 Qd5 $15) (23. Rxd4 Qxd3 24. Rxd3 Ncd5 $11) (23. Qxd4 Rac8 $15) 23... Rec8 $2 {[%emt 0:04:29]} (23... h5 $11) 24. gxh6 $18 {[%emt 0:06:18]} (24. Nxd4 Qxe5 25. gxh6 Qd5 $15) (24. Rxd4 Qxd3 25. Rxd3 hxg5 26. Bxg5 Ncd5 $15) (24. Qxd4 Ncd5 25. Rxc8 Rxc8 $11) 24... gxh6 {[%emt 0:03:08] [#]} 25. a4 $1 {[%emt 0:14:52]} ({Not} 25. Qxd4 Ncd5 26. Rfc1 Rxc4 27. Rxc4 (27. Qxc4 Qxb2 28. Kh1 Ng6 $15) 27... Bg7 $11) (25. Rxd4 Qxd3 26. Rxd3 Ncd5 $11) (25. Nxd4 $6 Qd5 $14) 25... Qxb2 {[%emt 0:03:53] [#]} (25... Qa6 $16) 26. Rc2 $1 {[%emt 0:02:16] Weighted Error Value: White=0.05 (flawless) /Black=0.50} ({Weaker is} 26. Nxd4 Ncd5 27. Nf3 Kh8 $17) ({Stronger than} 26. Qxd4 Qxd4 27. Rxd4 Ncd5 28. Rg4+ Kh8 $17) 1-0

[Event "3rd Sharjah Challengers 2023"]
[Site "Sharjah"]
[Date "2023.05.23"]
[Round "7.4"]
[White "Zaibi, Amir"]
[Black "Begmuratov, Khumoyun"]
[Result "1/2-1/2"]
[ECO "C00"]
[WhiteElo "2393"]
[BlackElo "2387"]
[Annotator "TA"]
[PlyCount "39"]
[EventDate "2023.05.16"]
[EventType "swiss"]
[EventCountry "UAE"]
[SourceTitle "playchess.com"]
[Source "ChessBase"]
[SourceQuality "1"]
[TimeControl "5400+30"]

{[%evp 16,24,7,0,0,-38,-33,-28,-15,-19,-9]} 1. Nf3 {[%emt 1:31:00]} Nf6 {[%emt 1:31:00]} 2. g3 {[%emt 0:00:30]} b6 {[%emt 0:00:30]} 3. Bg2 {[%emt 0:00:30]} Bb7 {[%emt 0:00:30]} 4. O-O {[%emt 0:00:30]} e6 {[%emt 0:00:30]} 5. d3 {[%emt 0:00:30]} d5 {[%emt 0:00:30]} 6. Nbd2 {[%emt 0:00:30]} c5 {[%emt 0:00:30]} 7. e4 {[%emt 0:00:30]} Nc6 {[%emt 0:00:30]} 8. Re1 {[%emt 0:00:30]} Be7 {[%emt 0:00:30]} 9. a3 {[%emt 0:00:30]} Qc7 {[%emt 0:00:30] C00: French: Unusual White 2nd moves.} 10. Nf1 {[%emt 0:00:30] 10.Qe2 is becoming the main line.} dxe4 {[%emt 0:00:30]} 11. dxe4 {[%emt 0:00:30]} Rd8 {[%emt 0:00:30]} 12. Qe2 {[%emt 0:00:30]} O-O {[%emt 0:00:30] [#] White did not feel at home in the position after the opening.   Weighted Error Value: White=0.14 (very precise) /Black=0.05 (flawless)} {Predecessor:} 13. e5 $146 Nd7 14. Bf4 Nd4 15. Nxd4 cxd4 16. Bxb7 Qxb7 17. Nd2 Nc5 18. Qg4 Kh8 19. Bg5 Bxg5 20. Qxg5 {0-1 Beeckmans,F (2175)-Jurek,J (2380) Imperia op 38th 1996 (2)} 1/2-1/2

[Event "3rd Sharjah Challengers 2023"]
[Site "Sharjah"]
[Date "2023.05.23"]
[Round "7.5"]
[White "George Micheal, Kevin"]
[Black "Hesham, Abdelrahman"]
[Result "0-1"]
[ECO "E61"]
[WhiteElo "2149"]
[BlackElo "2409"]
[Annotator "TA"]
[PlyCount "100"]
[EventDate "2023.05.16"]
[EventType "swiss"]
[EventCountry "UAE"]
[SourceTitle "playchess.com"]
[Source "ChessBase"]
[SourceQuality "1"]
[TimeControl "5400+30"]

{[%evp 9,100,27,27,18,26,22,44,38,41,37,46,38,50,0,0,0,4,0,0,0,28,26,34,37,34,23,47,8,44,27,82,-27,0,0,-13,-11,0,-8,0,0,0,0,0,0,0,0,20,20,49,0,17,0,36,0,0,0,0,0,0,0,0,0,0,0,0,-127,-126,-130,-131,-260,-260,-352,-342,-666,-660,-657,-653,-616,-526,-1075,-1070,-1049,-1050,-1036,-1029,-896,-827,-1278,-1135,-5718,-5064,-29981,-29981]} 1. d4 {[%emt 0:00:33]} Nf6 {[%emt 0:06:27]} 2. c4 {[%emt 0:00:21]} g6 {[%emt 0:04:51]} 3. g3 {[%emt 0:00:09]} Bg7 {[%emt 0:01:03]} 4. Bg2 {[%emt 0:00:05]} O-O {[%emt 0:00:11]} 5. Nc3 {[%emt 0:00:15]} Nc6 {[%emt 0:00:07]} 6. e3 $1 {[%emt 0:02:06][%cal Be2e3,Be3e4][%mdl 32] E61: King's Indian: Early deviations for White, including Smyslov System.} e5 {[%emt 0:06:17]} 7. d5 {[%emt 0:00:23]} Nb8 {[%emt 0:01:24]} 8. Nge2 {[%emt 0:01:54] White is slightly better.} d6 {[%emt 0:00:26]} 9. O-O {[%emt 0:00:25]} a5 {[%emt 0:00:16]} 10. e4 {[%emt 0:02:41]} Na6 {[%emt 0:05:21]} 11. h3 {[%emt 0:01:52] [#]} (11. Bg5 $14) 11... Nd7 $146 {[%emt 0:04:08]} ({Predecessor:} 11... Nh5 12. g4 Nf6 13. Ng3 Nd7 14. Be3 Ndc5 15. Qd2 Nb4 16. Rfd1 Nbd3 17. Nce2 Bd7 {0-1 Tregubov,P (2588)-Artemiev,V (2706) Douglas IoM op 2018 (6)}) 12. Be3 {[%emt 0:07:18]} f5 {[%emt 0:05:43]} 13. exf5 {[%emt 0:06:01]} gxf5 {[%emt 0:00:26]} 14. f4 {[%emt 0:01:24]} Nb6 {[%emt 0:03:31]} 15. b3 {[%emt 0:02:19]} e4 {[%emt 0:00:48][%cal Oa5a4]} 16. Bd4 {[%emt 0:06:12]} Nc5 {[%emt 0:06:24]} 17. Bxg7 {[%emt 0:05:41]} Kxg7 {[%emt 0:00:29]} 18. Nd4 {[%emt 0:00:24]} Qf6 {[%emt 0:16:22]} 19. Qd2 {[%emt 0:05:58][%cal Og3g4]} Bd7 {[%emt 0:02:10] [#]} (19... Kh8 $11 {keeps the balance.}) 20. Nd1 {[%emt 0:02:04]} (20. g4 $1 $16) 20... Kh8 {[%emt 0:03:04]} 21. Kh2 {[%emt 0:04:30]} Rg8 {[%emt 0:00:41]} 22. Rg1 {[%emt 0:04:26]} a4 {[%emt 0:08:34]} 23. Ne3 {[%emt 0:08:18]} axb3 {[%emt 0:00:15]} 24. axb3 {[%emt 0:00:09]} Rxa1 {[%emt 0:00:05]} 25. Rxa1 {[%emt 0:00:07]} Qg7 {[%emt 0:00:21]} 26. Nf1 {[%emt 0:00:47]} Nd3 {[%emt 0:00:24]} 27. Nc2 {[%emt 0:07:59]} h5 {[%emt 0:01:05][%cal Oh5h4]} 28. h4 {[%emt 0:01:13]} Qb2 {[%emt 0:06:05]} 29. Nfe3 {[%emt 0:05:24]} (29. Ra7 $1 $14 {might be stronger.}) 29... Kh7 {[%emt 0:01:11]} (29... Qg7 $5 {[%cal Rg7g3]} 30. Nf1 Kh7 $11) 30. Ra3 {[%emt 0:01:53]} Nc8 {[%emt 0:01:00]} (30... Qg7 $5 31. Nf1 $8 Qb2 $11) 31. b4 {[%emt 0:04:13]} (31. Qd1 {is more complex.} Kg6 32. Bf1 Nb4 33. Qa1) 31... Qg7 {[%emt 0:04:20]} 32. Nf1 {[%emt 0:00:07]} Nb6 {[%emt 0:00:18]} 33. Qc3 {[%emt 0:02:55]} Qxc3 {[%emt 0:01:12]} 34. Rxc3 {[%emt 0:00:04]} Ra8 $36 {[%emt 0:00:15][%mdl 2048] Black has some pressure.} 35. Nfe3 {[%emt 0:04:10]} Ra2 {[%emt 0:01:35]} 36. b5 {[%emt 0:01:05]} Rb2 {[%emt 0:05:50]} 37. Kg1 {[%emt 0:01:46] [#] Against Nf2} (37. Bf1 $1 $11) 37... Rb1+ $1 $17 {[%emt 0:00:24]} 38. Bf1 {[%emt 0:01:27]} Rc1 {[%emt 0:00:18] Black is much more active.} 39. Kh2 {[%emt 0:03:23]} (39. Rb3 $17) 39... Nb4 $19 {[%emt 0:01:36]} 40. Bg2 {[%emt 0:03:20]} Nxc2 {[%emt 0:03:57]} 41. Nxc2 {[%emt 0:00:55]} (41. Rxc2 Rxc2 {[%mdl 64] Remove Defender} 42. Nxc2 Nxc4 43. Bf1 Bxb5 44. Nd4) 41... Kg6 {[%emt 0:01:28]} 42. Kh3 {[%emt 0:01:47]} Kf6 {[%emt 0:00:13]} 43. Kh2 {[%emt 0:00:14] [#]} e3 $1 {[%emt 0:00:32][%mdl 512] White must now prevent ...e2.} 44. c5 {[%emt 0:00:45]} (44. Bf3 Na4) 44... dxc5 {[%emt 0:00:27] Hoping for ...e2.} 45. Bf3 {[%emt 0:01:23]} Na4 {[%emt 0:00:12]} 46. Rxe3 {[%emt 0:01:05]} Rxc2+ {[%emt 0:00:03]} 47. Kg1 {[%emt 0:00:05]} Rc3 {[%emt 0:00:36]} 48. Rxc3 {[%emt 0:00:20]} Nxc3 {[%emt 0:00:01]} 49. d6 {[%emt 0:00:15]} cxd6 {[%emt 0:00:06][%cal Bc7d6,Bd6d5][%mdl 32]} 50. b6 {[%emt 0:00:05]} d5 {[%emt 0:00:09] Weighted Error Value: White=0.72/Black=0.11 (very precise)} 0-1

[Event "3rd Sharjah Challengers 2023"]
[Site "Sharjah"]
[Date "2023.05.23"]
[Round "7.6"]
[White "Mammadova, Gulnar"]
[Black "Badelka, Olga"]
[Result "1/2-1/2"]
[ECO "B22"]
[WhiteElo "2349"]
[BlackElo "2406"]
[Annotator "TA"]
[PlyCount "31"]
[EventDate "2023.05.16"]
[EventType "swiss"]
[EventCountry "UAE"]
[SourceTitle "playchess.com"]
[Source "ChessBase"]
[SourceQuality "1"]
[TimeControl "5400+30"]

{[%evp 13,31,32,22,9,20,0,0,0,0,0,12,1,16,0,0,9,81,74,81,87]} 1. e4 {[%emt 0:00:06]} c5 {[%emt 0:00:08]} 2. Nf3 {[%emt 0:00:16]} e6 {[%emt 0:00:12]} 3. c3 {[%emt 0:00:19]} d5 {[%emt 0:00:14]} 4. exd5 {[%emt 0:00:32]} Qxd5 {[%emt 0:00:07]} 5. d4 {[%emt 0:00:46]} Nf6 {[%emt 0:00:18]} 6. Na3 {[%emt 0:01:11]} a6 {[%emt 0:00:24]} 7. Nc4 {[%emt 0:02:34]} Nbd7 {[%emt 0:00:14]} 8. Be2 {[%emt 0:01:14] B22: Sicilian: 2 c3.} b5 {[%emt 0:09:33] is cutting edge theory.} 9. Nce5 {[%emt 0:05:22][%cal Oe5f7] [#] Nxf7! would be deadly.} cxd4 {[%emt 0:09:13]} 10. Nxd7 {[%emt 0:01:51] The position is equal.} Bxd7 {[%emt 0:00:31] [#]} 11. Qxd4 $146 {[%emt 0:03:33]} ({Predecessor:} 11. Nxd4 e5 12. O-O Be7 13. Nf3 Qc5 14. Re1 O-O 15. Bd3 Bg4 16. h3 Bh5 17. Bg5 {0-1 Gu,X (2324)-Wang,J (2380) Yangzhou Basque (Women) rapid 2016 (12)}) 11... Qxd4 {[%emt 0:06:59]} 12. Nxd4 {[%emt 0:00:07]} e5 {[%emt 0:00:44]} 13. Nf3 {[%emt 0:01:25]} Bd6 {[%emt 0:03:19]} 14. O-O {[%emt 0:02:23]} O-O-O {[%emt 0:09:52] [#]} (14... O-O $11 {remains equal.}) 15. a4 $1 $16 {[%emt 0:05:47][%cal Ba2a4,Ba4b5][%mdl 32]} Bc6 {[%emt 0:24:05]} (15... bxa4 16. Bxa6+) 16. axb5 {[%emt 0:04:17] Weighted Error Value: White=0.07 (flawless) /Black=0.18 (very precise)} 1/2-1/2

[Event "3rd Sharjah Challengers 2023"]
[Site "Sharjah"]
[Date "2023.05.23"]
[Round "7.7"]
[White "Haznedaroglu, Kivanc"]
[Black "Liyanage, Ranindu Dilshan"]
[Result "1/2-1/2"]
[ECO "C81"]
[WhiteElo "2418"]
[BlackElo "2342"]
[Annotator "TA"]
[PlyCount "48"]
[EventDate "2023.05.16"]
[EventType "swiss"]
[EventCountry "UAE"]
[SourceTitle "playchess.com"]
[Source "ChessBase"]
[SourceQuality "1"]
[TimeControl "5400+30"]

{[%evp 32,48,11,8,0,0,0,0,0,0,0,0,0,0,0,0,0,0,0]} 1. e4 {[%emt 0:00:03] Atalik,Suat} e5 {[%emt 0:00:12]} 2. Nf3 {[%emt 0:00:13]} Nc6 {[%emt 0:00:11]} 3. Bb5 {[%emt 0:00:08][%cal Bf1b5,Bb5a4,Ba4b3,Bb3c4][%mdl 32]} a6 {[%emt 0:00:13]} 4. Ba4 {[%emt 0:00:03]} Nf6 {[%emt 0:00:09]} 5. O-O {[%emt 0:00:06]} Nxe4 {[%emt 0:00:15]} 6. d4 {[%emt 0:00:18]} b5 {[%emt 0:00:10]} 7. Bb3 {[%emt 0:00:02]} d5 {[%emt 0:00:07]} 8. dxe5 {[%emt 0:00:13]} Be6 {[%emt 0:00:13]} 9. Qe2 {[%emt 0:01:52]} Be7 {[%emt 0:02:06]} 10. Rd1 {[%emt 0:00:21]} O-O {[%emt 0:00:41]} 11. c4 {[%emt 0:00:18]} bxc4 {[%emt 0:00:23]} 12. Bxc4 {[%emt 0:00:02]} Bc5 {[%emt 0:00:10]} 13. Be3 {[%emt 0:00:18]} Bxe3 {[%emt 0:00:13]} 14. Qxe3 {[%emt 0:00:08]} Qb8 {[%emt 0:00:06]} 15. Bb3 {[%emt 0:00:05]} Na5 {[%emt 0:00:09]} 16. Nbd2 {[%emt 0:01:16]} Qa7 {[%emt 0:00:43]} 17. Qxa7 {[%emt 0:03:10] The position is equal.} Rxa7 {[%emt 0:00:07] C81: Open Ruy Lopez: Keres Variation (9 Qe2).} 18. Rac1 {[%emt 0:00:03]} c5 {[%emt 0:01:16]} 19. Nxe4 {[%emt 0:04:19]} Nxb3 {[%emt 0:00:17]} 20. axb3 {[%emt 0:00:03]} dxe4 {[%emt 0:00:09]} 21. Nd2 {[%emt 0:00:03]} e3 {[%emt 0:00:14]} 22. fxe3 {[%emt 0:00:10]} Rb7 {[%emt 0:00:08] [#]} 23. Kf2 $146 {[%emt 0:05:19]} (23. Rxc5 $2 {is the wrong capture.} Rd7 24. Kf2 Bxb3 25. Nxb3 Rxd1 $19) ({Predecessor:} 23. Ne4 Rxb3 24. Nxc5 Rxe3 25. Nxa6 Rxe5 26. b4 h5 27. Rc5 Rxc5 28. Nxc5 Bc4 29. Rd4 Bb5 30. Rd5 Rb8 31. Rxh5 Bc4 {½-½ Goloshchapov,A (2523)-Atalik,S (2581) Nova Gorica op-A 08th 2003 (3)}) 23... Bxb3 {[%emt 0:01:05]} 24. Nxb3 {[%emt 0:00:10]} Rxb3 {[%emt 0:00:21] A rather calm draw.   Weighted Error Value: White=0.01 (flawless) /Black=0.00 (flawless)} 1/2-1/2